[Event "Late-Titled-Tuesday-Blitz-February-13-2024"]
[Site "Chess.com"]
[Date "2024.02.13"]
[Round "11"]
[White "viniciusrego"]
[Black "andrzej"]
[Result "1-0"]
[WhiteElo "2395"]
[BlackElo "2487"]
[TimeControl "180+1"]
[EndTime "16:05:50 PST"]
[Termination "viniciusrego won by checkmate"]

1. e4 {[%clk 0:03:00.9]} 1... e5 {[%clk 0:02:59.8]} 2. Nf3 {[%clk 0:03:00.8]}
2... Nf6 {[%clk 0:03:00.4]} 3. d3 {[%clk 0:03:00.6]} 3... Nc6 {[%clk 0:03:00.1]}
4. Be2 {[%clk 0:03:00.7]} 4... d5 {[%clk 0:03:00.4]} 5. Nbd2 {[%clk 0:03:00.9]}
5... Bc5 {[%clk 0:02:59]} 6. c3 {[%clk 0:03:01]} 6... a5 {[%clk 0:02:58.6]} 7.
b3 {[%clk 0:03:00.6]} 7... O-O {[%clk 0:02:58.5]} 8. O-O {[%clk 0:03:00.6]} 8...
b6 {[%clk 0:02:52.5]} 9. a3 {[%clk 0:03:00.5]} 9... Ba6 {[%clk 0:02:48]} 10. Rb1
{[%clk 0:03:00.1]} 10... dxe4 {[%clk 0:02:40.9]} 11. dxe4 {[%clk 0:03:01]} 11...
Bxe2 {[%clk 0:02:40.8]} 12. Qxe2 {[%clk 0:03:01.9]} 12... Re8 {[%clk 0:02:32.5]}
13. b4 {[%clk 0:03:02.1]} 13... axb4 {[%clk 0:02:32.6]} 14. axb4 {[%clk
0:03:03]} 14... Bf8 {[%clk 0:02:32.7]} 15. Nc4 {[%clk 0:03:02.2]} 15... b5
{[%clk 0:02:22.8]} 16. Nb2 {[%clk 0:03:02]} 16... Ra2 {[%clk 0:02:21.2]} 17. Bg5
{[%clk 0:03:02.3]} 17... Be7 {[%clk 0:02:14]} 18. Bxf6 {[%clk 0:03:00.2]} 18...
Bxf6 {[%clk 0:02:13.6]} 19. Qxb5 {[%clk 0:03:00.8]} 19... Qa8 {[%clk 0:02:08]}
20. Nc4 {[%clk 0:02:55]} 20... Rb8 {[%clk 0:01:58.6]} 21. Qd5 {[%clk 0:02:55.4]}
21... Rd8 {[%clk 0:01:50.2]} 22. Qb5 {[%clk 0:02:55.4]} 22... Rb8 {[%clk
0:01:50.2]} 23. Qc5 {[%clk 0:02:55.7]} 23... Be7 {[%clk 0:01:45.2]} 24. Qe3
{[%clk 0:02:54.5]} 24... f6 {[%clk 0:01:38.8]} 25. Nh4 {[%clk 0:02:52.4]} 25...
Bf8 {[%clk 0:01:37.9]} 26. Nf5 {[%clk 0:02:52.4]} 26... Nd8 {[%clk 0:01:35.9]}
27. Qh3 {[%clk 0:02:45.4]} 27... Qxe4 {[%clk 0:01:31.2]} 28. Nce3 {[%clk
0:02:45.7]} 28... g6 {[%clk 0:01:24.3]} 29. Ng3 {[%clk 0:02:32.6]} 29... Qc6
{[%clk 0:01:23.4]} 30. c4 {[%clk 0:02:30.2]} 30... Qe6 {[%clk 0:01:21.4]} 31.
Qh4 {[%clk 0:02:28.3]} 31... f5 {[%clk 0:01:18.5]} 32. Nd5 {[%clk 0:02:26.7]}
32... Kg7 {[%clk 0:01:09.4]} 33. b5 {[%clk 0:02:25.3]} 33... Nf7 {[%clk
0:00:58.3]} 34. Nxc7 {[%clk 0:02:03.7]} 34... Qd7 {[%clk 0:00:57.9]} 35. Nd5
{[%clk 0:02:01.9]} 35... Rc2 {[%clk 0:00:53.7]} 36. Qf6+ {[%clk 0:02:00.8]}
36... Kg8 {[%clk 0:00:53.3]} 37. Qxg6+ {[%clk 0:01:49.3]} 37... hxg6 {[%clk
0:00:49]} 38. Nf6+ {[%clk 0:01:49.8]} 38... Kg7 {[%clk 0:00:49.4]} 39. Nxd7
{[%clk 0:01:50.3]} 39... Rd8 {[%clk 0:00:48.8]} 40. Nb6 {[%clk 0:01:47.3]} 40...
Bc5 {[%clk 0:00:47.5]} 41. Nd5 {[%clk 0:01:39.2]} 41... Rxc4 {[%clk 0:00:47.1]}
42. Nc7 {[%clk 0:01:39.7]} 42... Bxf2+ {[%clk 0:00:41.1]} 43. Kxf2 {[%clk
0:01:40.6]} 43... Rxc7 {[%clk 0:00:41.4]} 44. b6 {[%clk 0:01:39.3]} 44... Rb7
{[%clk 0:00:41.3]} 45. Rb5 {[%clk 0:01:39.5]} 45... Rdb8 {[%clk 0:00:41]} 46.
Rfb1 {[%clk 0:01:39.9]} 46... Nd6 {[%clk 0:00:41.1]} 47. R5b4 {[%clk 0:01:38.9]}
47... e4 {[%clk 0:00:40.8]} 48. Ke3 {[%clk 0:01:38.6]} 48... Nc8 {[%clk
0:00:40.2]} 49. Rc1 {[%clk 0:01:36.4]} 49... Nxb6 {[%clk 0:00:36.6]} 50. Kd4
{[%clk 0:01:34.6]} 50... Nd7 {[%clk 0:00:31.6]} 51. Rxb7 {[%clk 0:01:34.6]}
51... Rxb7 {[%clk 0:00:32.5]} 52. Ne2 {[%clk 0:01:34.3]} 52... Nf6 {[%clk
0:00:30]} 53. Nf4 {[%clk 0:01:34.3]} 53... Rd7+ {[%clk 0:00:27.7]} 54. Ke5
{[%clk 0:01:34.8]} 54... Re7+ {[%clk 0:00:27.6]} 55. Ne6+ {[%clk 0:01:35.2]}
55... Kf7 {[%clk 0:00:26.8]} 56. Rc6 {[%clk 0:01:36.1]} 56... Ng4+ {[%clk
0:00:26.4]} 57. Kd5 {[%clk 0:01:35.5]} 57... Rd7+ {[%clk 0:00:23.6]} 58. Kc5
{[%clk 0:01:34.7]} 58... e3 {[%clk 0:00:21.9]} 59. Ng5+ {[%clk 0:01:33.7]} 59...
Kg7 {[%clk 0:00:21.3]} 60. h3 {[%clk 0:01:33.2]} 60... e2 {[%clk 0:00:19.9]} 61.
Re6 {[%clk 0:01:33.1]} 61... Rc7+ {[%clk 0:00:18.3]} 62. Kd6 {[%clk 0:01:32.3]}
62... Rc2 {[%clk 0:00:15.3]} 63. hxg4 {[%clk 0:01:31.8]} 63... fxg4 {[%clk
0:00:15.3]} 64. Kd5 {[%clk 0:01:29]} 64... Kh6 {[%clk 0:00:13.4]} 65. Nf7+
{[%clk 0:01:28.6]} 65... Kg7 {[%clk 0:00:13.1]} 66. Nd6 {[%clk 0:01:26.4]} 66...
g3 {[%clk 0:00:09.6]} 67. Kd4 {[%clk 0:01:22.6]} 67... Rd2+ {[%clk 0:00:09.5]}
68. Kc5 {[%clk 0:01:21.5]} 68... Kh6 {[%clk 0:00:08.5]} 69. Re3 {[%clk
0:01:19.4]} 69... Kh5 {[%clk 0:00:06.2]} 70. Ne4 {[%clk 0:01:18.4]} 70... Rc2+
{[%clk 0:00:06.3]} 71. Kd4 {[%clk 0:01:18.2]} 71... Kh4 {[%clk 0:00:05.7]} 72.
Kd3 {[%clk 0:01:15.1]} 72... Ra2 {[%clk 0:00:05.3]} 73. Rxe2 {[%clk 0:01:14.6]}
73... Ra3+ {[%clk 0:00:04.2]} 74. Nc3 {[%clk 0:01:14]} 74... g5 {[%clk
0:00:04.1]} 75. Re4+ {[%clk 0:01:14.1]} 75... g4 {[%clk 0:00:04.2]} 76. Re2
{[%clk 0:01:14.5]} 76... Ra1 {[%clk 0:00:03.7]} 77. Ne4 {[%clk 0:01:14.6]} 77...
Rg1 {[%clk 0:00:04]} 78. Ke3 {[%clk 0:01:14.7]} 78... Ra1 {[%clk 0:00:03.7]} 79.
Kf4 {[%clk 0:01:15]} 79... Ra3 {[%clk 0:00:04.2]} 80. Re1 {[%clk 0:01:13.7]}
80... Ra4 {[%clk 0:00:04.3]} 81. Rh1# {[%clk 0:01:13.8]} 1-0

[Event "Late-Titled-Tuesday-Blitz-February-13-2024"]
[Site "Chess.com"]
[Date "2024.02.13"]
[Round "11"]
[White "alexrustemov"]
[Black "AryanTari"]
[Result "1-0"]
[WhiteElo "2847"]
[BlackElo "2934"]
[TimeControl "180+1"]
[EndTime "16:05:52 PST"]
[Termination "alexrustemov won on time"]

1. d4 {[%clk 0:03:00.9]} 1... d5 {[%clk 0:03:00.1]} 2. Nf3 {[%clk 0:03:00.7]}
2... Nf6 {[%clk 0:02:59.8]} 3. e3 {[%clk 0:02:58.9]} 3... e6 {[%clk 0:02:58.6]}
4. c4 {[%clk 0:02:57.9]} 4... Be7 {[%clk 0:02:58.3]} 5. a3 {[%clk 0:02:55.8]}
5... O-O {[%clk 0:02:58.2]} 6. Nbd2 {[%clk 0:02:54.7]} 6... b6 {[%clk
0:02:57.8]} 7. b4 {[%clk 0:02:53.6]} 7... a5 {[%clk 0:02:37.2]} 8. b5 {[%clk
0:02:51.6]} 8... c6 {[%clk 0:02:36.8]} 9. bxc6 {[%clk 0:02:49.6]} 9... Nxc6
{[%clk 0:02:36.8]} 10. Bb2 {[%clk 0:02:48.9]} 10... Ba6 {[%clk 0:02:35.6]} 11.
Rc1 {[%clk 0:02:34.2]} 11... Qd7 {[%clk 0:02:08.7]} 12. Bd3 {[%clk 0:02:25.2]}
12... dxc4 {[%clk 0:02:05.4]} 13. Nxc4 {[%clk 0:02:24.2]} 13... Qb7 {[%clk
0:02:04.2]} 14. O-O {[%clk 0:02:20.6]} 14... b5 {[%clk 0:01:58.1]} 15. Nce5
{[%clk 0:02:19.5]} 15... Nxe5 {[%clk 0:01:58.3]} 16. Nxe5 {[%clk 0:02:19.1]}
16... b4 {[%clk 0:01:55.6]} 17. axb4 {[%clk 0:02:14.2]} 17... Bxb4 {[%clk
0:01:41.7]} 18. Qe2 {[%clk 0:02:02.9]} 18... a4 {[%clk 0:01:29.1]} 19. Ra1
{[%clk 0:01:49.3]} 19... Bxd3 {[%clk 0:01:21.6]} 20. Nxd3 {[%clk 0:01:48.6]}
20... a3 {[%clk 0:01:04.3]} 21. Bc1 {[%clk 0:01:28.9]} 21... Qa6 {[%clk
0:00:56]} 22. Bd2 {[%clk 0:01:23]} 22... Be7 {[%clk 0:00:52.6]} 23. Ra2 {[%clk
0:01:11.2]} 23... Rfb8 {[%clk 0:00:50.3]} 24. Rfa1 {[%clk 0:01:11.3]} 24... Ne4
{[%clk 0:00:46.7]} 25. Be1 {[%clk 0:01:10.1]} 25... Rb3 {[%clk 0:00:33.9]} 26.
Nc1 {[%clk 0:01:05.2]} 26... Qxe2 {[%clk 0:00:33.8]} 27. Nxe2 {[%clk 0:00:56.6]}
27... Rc8 {[%clk 0:00:32.9]} 28. f3 {[%clk 0:00:56.7]} 28... Nf6 {[%clk
0:00:29.8]} 29. e4 {[%clk 0:00:54.5]} 29... Nd7 {[%clk 0:00:27.5]} 30. Bd2
{[%clk 0:00:43.5]} 30... Nb6 {[%clk 0:00:27.3]} 31. Bc1 {[%clk 0:00:41.6]} 31...
Nc4 {[%clk 0:00:26.5]} 32. Rc2 {[%clk 0:00:40.7]} 32... f6 {[%clk 0:00:22.2]}
33. Kf2 {[%clk 0:00:32.9]} 33... Kf7 {[%clk 0:00:22]} 34. Raa2 {[%clk
0:00:31.3]} 34... Ke8 {[%clk 0:00:22.1]} 35. Rc3 {[%clk 0:00:31.1]} 35... Rxc3
{[%clk 0:00:21.9]} 36. Nxc3 {[%clk 0:00:31.1]} 36... Rb8 {[%clk 0:00:21.6]} 37.
Ke2 {[%clk 0:00:28.3]} 37... Kd7 {[%clk 0:00:18.5]} 38. Kd3 {[%clk 0:00:28.6]}
38... Rc8 {[%clk 0:00:17.1]} 39. Nb5 {[%clk 0:00:24.4]} 39... h5 {[%clk
0:00:06]} 40. Rc2 {[%clk 0:00:23.4]} 40... Ra8 {[%clk 0:00:03.7]} 41. Ra2 {[%clk
0:00:20.6]} 41... Ra4 {[%clk 0:00:02.6]} 42. Nc3 {[%clk 0:00:16.5]} 42... Rb4
{[%clk 0:00:02.6]} 43. Bxa3 {[%clk 0:00:16.6]} 43... Nxa3 {[%clk 0:00:01.7]} 44.
Rxa3 {[%clk 0:00:17]} 44... Rxd4+ {[%clk 0:00:01.8]} 45. Kxd4 {[%clk 0:00:15.8]}
45... Bxa3 {[%clk 0:00:02.7]} 46. h3 {[%clk 0:00:12.8]} 46... Bb2 {[%clk
0:00:02.4]} 47. Kd3 {[%clk 0:00:12.9]} 47... Kd6 {[%clk 0:00:02.1]} 48. Ne2
{[%clk 0:00:12.6]} 48... Ke5 {[%clk 0:00:01.5]} 49. f4+ {[%clk 0:00:12.3]} 49...
Kd6 {[%clk 0:00:02]} 50. Ng3 {[%clk 0:00:11.2]} 50... Bc1 {[%clk 0:00:01.8]} 51.
Nxh5 {[%clk 0:00:11.2]} 51... Ke7 {[%clk 0:00:01.5]} 52. f5 {[%clk 0:00:11.5]}
1-0

[Event "Late-Titled-Tuesday-Blitz-February-13-2024"]
[Site "Chess.com"]
[Date "2024.02.13"]
[Round "11"]
[White "saikrishnaReturns"]
[Black "rhungaski"]
[Result "1-0"]
[WhiteElo "2784"]
[BlackElo "2571"]
[TimeControl "180+1"]
[EndTime "16:05:54 PST"]
[Termination "saikrishnaReturns won on time"]

1. Nf3 {[%clk 0:02:57.7]} 1... g6 {[%clk 0:02:59.6]} 2. g3 {[%clk 0:02:58]} 2...
Bg7 {[%clk 0:02:59]} 3. Bg2 {[%clk 0:02:58.9]} 3... d6 {[%clk 0:02:50.9]} 4. O-O
{[%clk 0:02:58.9]} 4... Nf6 {[%clk 0:02:47.3]} 5. d3 {[%clk 0:02:58.5]} 5... O-O
{[%clk 0:02:41.2]} 6. e4 {[%clk 0:02:57.8]} 6... c5 {[%clk 0:02:40.6]} 7. Nbd2
{[%clk 0:02:57.5]} 7... Nc6 {[%clk 0:02:39.3]} 8. Nh4 {[%clk 0:02:56.6]} 8...
Nd7 {[%clk 0:02:32.9]} 9. f4 {[%clk 0:02:56]} 9... b5 {[%clk 0:02:31.8]} 10. f5
{[%clk 0:02:53]} 10... Bb7 {[%clk 0:02:31.1]} 11. g4 {[%clk 0:02:52]} 11... Nde5
{[%clk 0:02:28.9]} 12. g5 {[%clk 0:02:50.8]} 12... Re8 {[%clk 0:02:26.3]} 13.
Ndf3 {[%clk 0:02:46.6]} 13... e6 {[%clk 0:02:25.4]} 14. f6 {[%clk 0:02:32.9]}
14... Bf8 {[%clk 0:02:24.9]} 15. Qe1 {[%clk 0:02:25.3]} 15... d5 {[%clk
0:02:23.8]} 16. Nd2 {[%clk 0:02:21.7]} 16... c4 {[%clk 0:02:21]} 17. Qg3 {[%clk
0:02:17]} 17... cxd3 {[%clk 0:02:19.1]} 18. cxd3 {[%clk 0:02:17.9]} 18... dxe4
{[%clk 0:02:18]} 19. dxe4 {[%clk 0:02:15.8]} 19... Nd3 {[%clk 0:01:47.9]} 20.
Nb3 {[%clk 0:02:13.8]} 20... Nxc1 {[%clk 0:01:40]} 21. Raxc1 {[%clk 0:02:14.7]}
21... e5 {[%clk 0:01:35.7]} 22. Nf5 {[%clk 0:02:03.8]} 22... gxf5 {[%clk
0:01:31.1]} 23. exf5 {[%clk 0:02:04.7]} 23... Qb6+ {[%clk 0:01:30.9]} 24. Kh1
{[%clk 0:02:05]} 24... Kh8 {[%clk 0:01:05]} 25. g6 {[%clk 0:02:01.4]} 25... Bh6
{[%clk 0:01:02]} 26. Qh4 {[%clk 0:01:46.9]} 26... Qe3 {[%clk 0:01:01.5]} 27.
Bxc6 {[%clk 0:01:42.9]} 27... Bxc6+ {[%clk 0:01:01.3]} 28. Rxc6 {[%clk
0:01:43.5]} 28... Qg5 {[%clk 0:00:45.5]} 29. Qxg5 {[%clk 0:01:39.1]} 29... Bxg5
{[%clk 0:00:45.3]} 30. Rg1 {[%clk 0:01:37.8]} 30... h6 {[%clk 0:00:44.7]} 31.
gxf7 {[%clk 0:01:31.3]} 31... Rf8 {[%clk 0:00:44.5]} 32. h4 {[%clk 0:01:31.5]}
32... Bxh4 {[%clk 0:00:38]} 33. Rg7 {[%clk 0:01:30.7]} 33... e4 {[%clk
0:00:30.7]} 34. Nd4 {[%clk 0:01:23]} 34... e3 {[%clk 0:00:30.6]} 35. Kg2 {[%clk
0:01:17.9]} 35... Rad8 {[%clk 0:00:28.9]} 36. Ne2 {[%clk 0:01:13.1]} 36... Bxf6
{[%clk 0:00:25.5]} 37. Rg8+ {[%clk 0:01:03.6]} 37... Rxg8+ {[%clk 0:00:25.2]}
38. fxg8=Q+ {[%clk 0:01:04.5]} 38... Rxg8+ {[%clk 0:00:24.9]} 39. Kf3 {[%clk
0:01:05]} 39... Bg5 {[%clk 0:00:24.3]} 40. Rc5 {[%clk 0:01:00.1]} 40... a6
{[%clk 0:00:22.7]} 41. Rc6 {[%clk 0:01:00.2]} 41... Rf8 {[%clk 0:00:22.7]} 42.
Kg4 {[%clk 0:00:57.2]} 42... Rf6 {[%clk 0:00:22.7]} 43. Rc7 {[%clk 0:00:54.5]}
43... Rd6 {[%clk 0:00:20.4]} 44. Kh5 {[%clk 0:00:51.4]} 44... Kg8 {[%clk
0:00:16.5]} 45. Ng3 {[%clk 0:00:49.2]} 45... Kf8 {[%clk 0:00:16.5]} 46. Kg4
{[%clk 0:00:40.2]} 46... Rd2 {[%clk 0:00:14.7]} 47. Rc6 {[%clk 0:00:27.8]} 47...
Rxb2 {[%clk 0:00:07.4]} 48. Rxa6 {[%clk 0:00:27.5]} 48... Rf2 {[%clk 0:00:06.9]}
49. Kh5 {[%clk 0:00:20.7]} 49... Rf3 {[%clk 0:00:06.1]} 50. Kg4 {[%clk
0:00:20.6]} 50... Rf4+ {[%clk 0:00:05.9]} 51. Kh5 {[%clk 0:00:21.2]} 51... Ke8
{[%clk 0:00:03.7]} 52. Re6+ {[%clk 0:00:19.9]} 52... Kd7 {[%clk 0:00:03.7]} 53.
Ne4 {[%clk 0:00:20.2]} 53... Kc7 {[%clk 0:00:02.5]} 54. Nxg5 {[%clk 0:00:19.9]}
1-0

[Event "Late-Titled-Tuesday-Blitz-February-13-2024"]
[Site "Chess.com"]
[Date "2024.02.13"]
[Round "11"]
[White "Nemsko"]
[Black "karinachess1"]
[Result "0-1"]
[WhiteElo "2419"]
[BlackElo "2678"]
[TimeControl "180+1"]
[EndTime "16:05:57 PST"]
[Termination "karinachess1 won on time"]

1. e4 {[%clk 0:03:00.9]} 1... e5 {[%clk 0:03:00.1]} 2. Nf3 {[%clk 0:03:00.3]}
2... Nc6 {[%clk 0:03:00.6]} 3. Bb5 {[%clk 0:03:00.8]} 3... Nge7 {[%clk
0:03:00.2]} 4. O-O {[%clk 0:02:57.3]} 4... Ng6 {[%clk 0:02:57]} 5. c3 {[%clk
0:02:56.2]} 5... a6 {[%clk 0:02:43.8]} 6. Ba4 {[%clk 0:02:49.7]} 6... b5 {[%clk
0:02:32.3]} 7. Bc2 {[%clk 0:02:48.9]} 7... Be7 {[%clk 0:02:30.8]} 8. a3 {[%clk
0:02:42]} 8... O-O {[%clk 0:02:25.3]} 9. d4 {[%clk 0:02:38.9]} 9... d6 {[%clk
0:02:20.2]} 10. Be3 {[%clk 0:02:13.5]} 10... Bb7 {[%clk 0:02:13.7]} 11. Nbd2
{[%clk 0:02:11.4]} 11... Bf6 {[%clk 0:02:03.1]} 12. d5 {[%clk 0:02:08.2]} 12...
Nce7 {[%clk 0:02:03.4]} 13. b3 {[%clk 0:02:08.2]} 13... c6 {[%clk 0:01:53.5]}
14. c4 {[%clk 0:02:08.4]} 14... Qd7 {[%clk 0:01:42.5]} 15. Bd3 {[%clk 0:02:03]}
15... Nf4 {[%clk 0:01:33.4]} 16. Be2 {[%clk 0:01:50.9]} 16... Qg4 {[%clk
0:01:23.8]} 17. g3 {[%clk 0:01:38.9]} 17... Neg6 {[%clk 0:01:13.9]} 18. Kh1
{[%clk 0:01:30.7]} 18... Nxe2 {[%clk 0:00:58.8]} 19. Qxe2 {[%clk 0:01:31.6]}
19... bxc4 {[%clk 0:00:50]} 20. bxc4 {[%clk 0:01:30.4]} 20... cxd5 {[%clk
0:00:48.5]} 21. cxd5 {[%clk 0:01:28.9]} 21... a5 {[%clk 0:00:48.9]} 22. Ng1
{[%clk 0:01:13.4]} 22... Qxe2 {[%clk 0:00:43]} 23. Nxe2 {[%clk 0:01:14.3]} 23...
Ba6 {[%clk 0:00:43.5]} 24. Rfe1 {[%clk 0:01:14.8]} 24... Rfc8 {[%clk 0:00:36.7]}
25. Rac1 {[%clk 0:01:02.6]} 25... Bd8 {[%clk 0:00:30.3]} 26. Rxc8 {[%clk
0:00:55.5]} 26... Rxc8 {[%clk 0:00:30.2]} 27. Rc1 {[%clk 0:00:54.9]} 27... Rxc1+
{[%clk 0:00:26.3]} 28. Nxc1 {[%clk 0:00:54.8]} 28... a4 {[%clk 0:00:26.3]} 29.
f4 {[%clk 0:00:43.5]} 29... Ba5 {[%clk 0:00:19.9]} 30. Na2 {[%clk 0:00:30.8]}
30... Bd3 {[%clk 0:00:17.3]} 31. Kg1 {[%clk 0:00:27.2]} 31... exf4 {[%clk
0:00:14.3]} 32. gxf4 {[%clk 0:00:25.8]} 32... Bxd2 {[%clk 0:00:14.5]} 33. Bxd2
{[%clk 0:00:26.7]} 33... Bxe4 {[%clk 0:00:15]} 34. Nc3 {[%clk 0:00:27]} 34...
Bc2 {[%clk 0:00:14.5]} 35. Nb5 {[%clk 0:00:27.4]} 35... Ne7 {[%clk 0:00:14.1]}
36. Nxd6 {[%clk 0:00:20.6]} 36... Nxd5 {[%clk 0:00:14.4]} 37. Nb5 {[%clk
0:00:17.8]} 37... f6 {[%clk 0:00:13.4]} 38. Kf2 {[%clk 0:00:14]} 38... Kf7
{[%clk 0:00:13.2]} 39. Kf3 {[%clk 0:00:13.8]} 39... Nb6 {[%clk 0:00:11.9]} 40.
Bb4 {[%clk 0:00:12.1]} 40... Bb3 {[%clk 0:00:10.8]} 41. Nd6+ {[%clk 0:00:11.9]}
41... Ke6 {[%clk 0:00:11]} 42. Ne8 {[%clk 0:00:08.7]} 42... Kf7 {[%clk
0:00:10.7]} 43. Nd6+ {[%clk 0:00:08.7]} 43... Kg8 {[%clk 0:00:08.4]} 44. Nb7
{[%clk 0:00:04.5]} 44... Nd5 {[%clk 0:00:07.6]} 45. Bd2 {[%clk 0:00:04.1]} 45...
Kf7 {[%clk 0:00:06.9]} 46. Nc5 {[%clk 0:00:04.7]} 46... Bc2 {[%clk 0:00:06.8]}
47. Nb7 {[%clk 0:00:04.8]} 47... Ne7 {[%clk 0:00:06.6]} 48. Nd6+ {[%clk
0:00:05.1]} 48... Ke6 {[%clk 0:00:07]} 49. Nc4 {[%clk 0:00:03.9]} 49... Nc6
{[%clk 0:00:07]} 50. Ke3 {[%clk 0:00:03.1]} 50... Bb3 {[%clk 0:00:07]} 51. Na5
{[%clk 0:00:03]} 51... Ne7 {[%clk 0:00:05.3]} 52. Nxb3 {[%clk 0:00:02.8]} 52...
axb3 {[%clk 0:00:06.2]} 53. Kd3 {[%clk 0:00:02.1]} 53... Nd5 {[%clk 0:00:06.7]}
54. Bc1 {[%clk 0:00:01.3]} 54... f5 {[%clk 0:00:05.9]} 0-1

[Event "Late-Titled-Tuesday-Blitz-February-13-2024"]
[Site "Chess.com"]
[Date "2024.02.13"]
[Round "11"]
[White "Msb2"]
[Black "Grischuk"]
[Result "0-1"]
[WhiteElo "3015"]
[BlackElo "3105"]
[TimeControl "180+1"]
[EndTime "16:05:58 PST"]
[Termination "Grischuk won by checkmate"]

1. d4 {[%clk 0:03:00.9]} 1... d5 {[%clk 0:03:00.7]} 2. c4 {[%clk 0:03:01.6]}
2... c6 {[%clk 0:03:01.2]} 3. Nf3 {[%clk 0:03:02.3]} 3... Nf6 {[%clk 0:03:01.6]}
4. Nc3 {[%clk 0:03:03.1]} 4... dxc4 {[%clk 0:03:02.2]} 5. e4 {[%clk 0:03:03.4]}
5... b5 {[%clk 0:03:02.4]} 6. Qc2 {[%clk 0:03:04.1]} 6... e6 {[%clk 0:03:01.8]}
7. Be2 {[%clk 0:03:04.8]} 7... a5 {[%clk 0:03:02.1]} 8. O-O {[%clk 0:03:03]}
8... a4 {[%clk 0:03:01.8]} 9. Bg5 {[%clk 0:03:00.9]} 9... h6 {[%clk 0:02:44.1]}
10. Bxf6 {[%clk 0:02:58.4]} 10... Qxf6 {[%clk 0:02:43.5]} 11. d5 {[%clk
0:02:51.7]} 11... Bd7 {[%clk 0:02:27.6]} 12. e5 {[%clk 0:02:35.7]} 12... Qf5
{[%clk 0:02:25.8]} 13. Qxf5 {[%clk 0:02:13.8]} 13... exf5 {[%clk 0:02:26.7]} 14.
Nd4 {[%clk 0:02:08.3]} 14... Bc5 {[%clk 0:01:53.9]} 15. dxc6 {[%clk 0:01:37]}
15... Bxd4 {[%clk 0:01:53.5]} 16. cxd7+ {[%clk 0:01:37]} 16... Nxd7 {[%clk
0:01:51.4]} 17. Nxb5 {[%clk 0:01:15.3]} 17... Bxb2 {[%clk 0:01:10]} 18. Rad1
{[%clk 0:01:14.4]} 18... Ke7 {[%clk 0:00:31.3]} 19. Bxc4 {[%clk 0:01:08.9]}
19... Nxe5 {[%clk 0:00:31.4]} 20. Rfe1 {[%clk 0:01:02.2]} 20... g5 {[%clk
0:00:25.5]} 21. Re2 {[%clk 0:00:31.8]} 21... a3 {[%clk 0:00:21.4]} 22. Bb3
{[%clk 0:00:18.2]} 22... Ra5 {[%clk 0:00:14.6]} 23. Nc7 {[%clk 0:00:10.2]} 23...
Rc8 {[%clk 0:00:08.3]} 24. Nd5+ {[%clk 0:00:09.9]} 24... Kf8 {[%clk 0:00:09]}
25. g3 {[%clk 0:00:08.9]} 25... Rcc5 {[%clk 0:00:06.5]} 26. f4 {[%clk
0:00:08.7]} 26... gxf4 {[%clk 0:00:05.8]} 27. gxf4 {[%clk 0:00:09.6]} 27... Ng6
{[%clk 0:00:05.7]} 28. Red2 {[%clk 0:00:02.6]} 28... Rab5 {[%clk 0:00:04.3]} 29.
Rd3 {[%clk 0:00:02.9]} 29... Rb7 {[%clk 0:00:02.4]} 30. Kf1 {[%clk 0:00:03.5]}
30... Kg7 {[%clk 0:00:02.4]} 31. Rf3 {[%clk 0:00:01.8]} 31... Rcb5 {[%clk
0:00:02.1]} 32. Rfd3 {[%clk 0:00:02.5]} 32... Rxb3 {[%clk 0:00:02.1]} 33. axb3
{[%clk 0:00:03.1]} 33... a2 {[%clk 0:00:02.3]} 34. Ne3 {[%clk 0:00:04]} 34...
a1=Q {[%clk 0:00:02.5]} 35. Nxf5+ {[%clk 0:00:04.9]} 35... Kh7 {[%clk
0:00:02.6]} 36. Rxa1 {[%clk 0:00:05.8]} 36... Bxa1 {[%clk 0:00:02.9]} 37. Nd6
{[%clk 0:00:05.6]} 37... Rd7 {[%clk 0:00:01.9]} 38. Rd1 {[%clk 0:00:03.6]} 38...
Nxf4 {[%clk 0:00:02]} 39. b4 {[%clk 0:00:03.4]} 39... Be5 {[%clk 0:00:01.4]} 40.
Rd4 {[%clk 0:00:02]} 40... Bxd4 {[%clk 0:00:01.4]} 41. Ne4 {[%clk 0:00:02.8]}
41... Be5 {[%clk 0:00:02]} 42. Nf6+ {[%clk 0:00:03.7]} 42... Bxf6 {[%clk
0:00:01.9]} 43. Kf2 {[%clk 0:00:04.6]} 43... Rb7 {[%clk 0:00:02.4]} 44. Kf3
{[%clk 0:00:05.5]} 44... Rb5 {[%clk 0:00:03.3]} 45. Ke4 {[%clk 0:00:06.4]} 45...
Rxb4+ {[%clk 0:00:03.8]} 46. Kf5 {[%clk 0:00:07.3]} 46... Rb6 {[%clk 0:00:04.2]}
47. h4 {[%clk 0:00:08.2]} 47... Ng6 {[%clk 0:00:04.6]} 48. h5 {[%clk 0:00:09.1]}
48... Ne7+ {[%clk 0:00:05.2]} 49. Kg4 {[%clk 0:00:10]} 49... Kg7 {[%clk
0:00:05.7]} 50. Kf3 {[%clk 0:00:10.9]} 50... Bg5 {[%clk 0:00:06.2]} 51. Kg2
{[%clk 0:00:11.8]} 51... f5 {[%clk 0:00:06.8]} 52. Kf1 {[%clk 0:00:12.7]} 52...
Kf6 {[%clk 0:00:07.7]} 53. Kg2 {[%clk 0:00:13.6]} 53... Ke6 {[%clk 0:00:08.6]}
54. Kh1 {[%clk 0:00:14.5]} 54... Ke5 {[%clk 0:00:09.5]} 55. Kg2 {[%clk
0:00:15.4]} 55... Nd5 {[%clk 0:00:10.1]} 56. Kg1 {[%clk 0:00:16.3]} 56... Nf6
{[%clk 0:00:11]} 57. Kh2 {[%clk 0:00:17.2]} 57... Nxh5 {[%clk 0:00:11.6]} 58.
Kh1 {[%clk 0:00:18.1]} 58... Nf6 {[%clk 0:00:12.5]} 59. Kh2 {[%clk 0:00:19]}
59... h5 {[%clk 0:00:13.4]} 60. Kh3 {[%clk 0:00:19.9]} 60... Rb4 {[%clk
0:00:14]} 61. Kg2 {[%clk 0:00:20.4]} 61... Rb3 {[%clk 0:00:14.4]} 62. Kf1 {[%clk
0:00:21.3]} 62... h4 {[%clk 0:00:14.9]} 63. Ke2 {[%clk 0:00:22.2]} 63... h3
{[%clk 0:00:14.3]} 64. Kd1 {[%clk 0:00:23]} 64... Rb2 {[%clk 0:00:14.1]} 65. Ke1
{[%clk 0:00:22.6]} 65... h2 {[%clk 0:00:14.5]} 66. Kf1 {[%clk 0:00:23.5]} 66...
h1=Q# {[%clk 0:00:14.7]} 0-1